[Event "Titled Tuesday Blitz April 05 Early 2022"]
[White "Avazkhonov, Alikhon"]
[Black "Voege, Tobias"]
[WhiteFideId "14208504"]
[BlackFideId "1270513"]
[WhiteElo "1739"]
[BlackElo "2297"]
[Result "0-1"]
[Round "04"]
[TimeControl "180+1"]
[Date "2022.04.05"]
[WhiteClock "0:00:02"]
[BlackClock "0:01:00"]

1. c4 {[%clk 0:03:00]}  Nf6 {[%clk 0:02:59]} 2. Nc3 {[%clk 0:03:00]}  g6 {[%clk 0:02:59]} 3. g3 {[%clk 0:02:59]}  Bg7 {[%clk 0:03:00]} 4. Bg2 {[%clk 0:03:00]}  O-O {[%clk 0:03:00]} 5. e4 {[%clk 0:03:01]}  c5 {[%clk 0:03:00]} 6. Nge2 {[%clk 0:03:01]}  Nc6 {[%clk 0:03:00]} 7. O-O {[%clk 0:03:01]}  Ne8 {[%clk 0:03:01]} 8. d3 {[%clk 0:03:00]}  d6 {[%clk 0:03:01]} 9. f4 {[%clk 0:03:00]}  Bg4 {[%clk 0:03:01]} 10. h3 {[%clk 0:02:59]}  Bxe2 {[%clk 0:03:00]} 11. Nxe2 {[%clk 0:02:53]}  Nc7 {[%clk 0:03:00]} 12. Be3 {[%clk 0:02:44]}  Ne6 {[%clk 0:02:59]} 13. Qd2 {[%clk 0:02:44]}  Ned4 {[%clk 0:02:54]} 14. Nxd4 {[%clk 0:02:33]}  Bxd4 {[%clk 0:02:50]} 15. Bxd4 {[%clk 0:02:31]}  Nxd4 {[%clk 0:02:51]} 16. f5 {[%clk 0:02:31]}  f6 {[%clk 0:02:48]} 17. fxg6 {[%clk 0:02:19]}  hxg6 {[%clk 0:02:49]} 18. Qh6 {[%clk 0:02:17]}  Qe8 {[%clk 0:02:48]} 19. g4 {[%clk 0:01:32]}  g5 {[%clk 0:02:41]} 20. h4 {[%clk 0:01:26]}  gxh4 {[%clk 0:02:21]} 21. g5 {[%clk 0:01:25]}  Qf7 {[%clk 0:02:10]} 22. gxf6 {[%clk 0:01:07]}  exf6 {[%clk 0:02:04]} 23. Qxh4 {[%clk 0:01:07]}  Qh7 {[%clk 0:01:56]} 24. Qg4+ {[%clk 0:00:52]}  Qg7 {[%clk 0:01:47]} 25. Qh5 {[%clk 0:00:52]}  Qg5 {[%clk 0:01:41]} 26. Qxg5+ {[%clk 0:00:12]}  fxg5 {[%clk 0:01:42]} 27. Bh3 {[%clk 0:00:13]}  Ne2+ {[%clk 0:01:34]} 28. Kg2 {[%clk 0:00:13]}  Nf4+ {[%clk 0:01:35]} 29. Kg3 {[%clk 0:00:13]}  Nxd3 {[%clk 0:01:34]} 30. Be6+ {[%clk 0:00:08]}  Kg7 {[%clk 0:01:34]} 31. Kg4 {[%clk 0:00:08]}  Nf2+ {[%clk 0:01:32]} 32. Kxg5 {[%clk 0:00:07]}  Nxe4+ {[%clk 0:01:30]} 33. Kg4 {[%clk 0:00:08]}  Rxf1 {[%clk 0:01:26]} 34. Rxf1 {[%clk 0:00:07]}  Rf8 {[%clk 0:01:26]} 35. Rg1 {[%clk 0:00:04]}  Rf6 {[%clk 0:01:07]} 36. Kh5+ {[%clk 0:00:03]}  Kf8 {[%clk 0:01:03]} 37. Rg8+ {[%clk 0:00:02]}  Ke7 {[%clk 0:01:02]} 38. Bd5 {[%clk 0:00:03]}  Rf5+ {[%clk 0:01:00]} 39. Kg4 {[%clk 0:00:04]}  Rxd5 {[%clk 0:01:00]} 40. Rg7+ {[%clk 0:00:02]}  Kf6 {[%clk 0:01:00]} 0-1


[Site "https://www.chess.com"]

[Event "Titled Tuesday Blitz April 05 Early 2022"]
[White "Bongo Akanga Ndjila, Barthelemy"]
[Black "Estrada Nieto, Julian"]
[WhiteFideId "10609431"]
[BlackFideId "5101018"]
[WhiteElo "1768"]
[BlackElo "2252"]
[Result "1-0"]
[Round "04"]
[TimeControl "180+1"]
[Date "2022.04.05"]
[WhiteClock "0:00:28"]
[BlackClock "0:00:02"]

1. d4 {[%clk 0:03:00]}  Nf6 {[%clk 0:02:58]} 2. c4 {[%clk 0:03:00]}  e6 {[%clk 0:02:58]} 3. Nc3 {[%clk 0:03:00]}  c5 {[%clk 0:02:58]} 4. d5 {[%clk 0:03:00]}  exd5 {[%clk 0:02:59]} 5. cxd5 {[%clk 0:03:00]}  d6 {[%clk 0:03:00]} 6. Nf3 {[%clk 0:02:59]}  g6 {[%clk 0:03:00]} 7. g3 {[%clk 0:03:00]}  Bg7 {[%clk 0:03:01]} 8. Bg2 {[%clk 0:03:00]}  O-O {[%clk 0:03:01]} 9. O-O {[%clk 0:03:00]}  a6 {[%clk 0:02:59]} 10. a4 {[%clk 0:02:59]}  Re8 {[%clk 0:02:55]} 11. Nd2 {[%clk 0:02:59]}  Nbd7 {[%clk 0:02:52]} 12. Re1 {[%clk 0:02:57]}  Rb8 {[%clk 0:02:51]} 13. a5 {[%clk 0:02:56]}  b5 {[%clk 0:02:48]} 14. axb6 {[%clk 0:02:56]}  Nxb6 {[%clk 0:02:48]} 15. Nb3 {[%clk 0:02:56]}  Bb7 {[%clk 0:02:30]} 16. Na5 {[%clk 0:02:53]}  Qc7 {[%clk 0:02:26]} 17. Nc6 {[%clk 0:02:51]}  Bxc6 {[%clk 0:02:23]} 18. dxc6 {[%clk 0:02:51]}  Ra8 {[%clk 0:02:14]} 19. Bf4 {[%clk 0:02:49]}  Re6 {[%clk 0:02:09]} 20. Bh3 {[%clk 0:02:42]}  Qxc6 {[%clk 0:01:59]} 21. Bxe6 {[%clk 0:02:41]}  fxe6 {[%clk 0:01:59]} 22. e4 {[%clk 0:02:37]}  Nc4 {[%clk 0:01:47]} 23. b3 {[%clk 0:02:32]}  Ne5 {[%clk 0:01:46]} 24. Bxe5 {[%clk 0:02:27]}  dxe5 {[%clk 0:01:46]} 25. Na4 {[%clk 0:02:23]}  Nxe4 {[%clk 0:01:39]} 26. Qf3 {[%clk 0:02:22]}  Rb8 {[%clk 0:01:22]} 27. Qxe4 {[%clk 0:02:21]}  Qxe4 {[%clk 0:01:22]} 28. Rxe4 {[%clk 0:02:19]}  Rxb3 {[%clk 0:01:22]} 29. Nxc5 {[%clk 0:02:19]}  Rb2 {[%clk 0:01:20]} 30. Rxa6 {[%clk 0:02:17]}  Bf8 {[%clk 0:01:19]} 31. Nxe6 {[%clk 0:02:17]}  Be7 {[%clk 0:01:11]} 32. Ra7 {[%clk 0:02:17]}  Bf6 {[%clk 0:01:11]} 33. Rc4 {[%clk 0:02:10]}  Rb8 {[%clk 0:01:10]} 34. g4 {[%clk 0:02:06]}  h6 {[%clk 0:01:09]} 35. Rcc7 {[%clk 0:02:00]}  e4 {[%clk 0:01:06]} 36. h4 {[%clk 0:01:59]}  Re8 {[%clk 0:01:03]} 37. g5 {[%clk 0:01:55]}  hxg5 {[%clk 0:00:59]} 38. hxg5 {[%clk 0:01:54]}  Be5 {[%clk 0:00:57]} 39. Re7 {[%clk 0:01:49]}  Rc8 {[%clk 0:00:53]} 40. Ra5 {[%clk 0:01:35]}  Bd6 {[%clk 0:00:49]} 41. Rd7 {[%clk 0:01:34]}  Bb4 {[%clk 0:00:35]} 42. Rg7+ {[%clk 0:01:26]}  Kh8 {[%clk 0:00:34]} 43. Raa7 {[%clk 0:01:21]}  Bc3 {[%clk 0:00:34]} 44. Rxg6 {[%clk 0:01:13]}  e3 {[%clk 0:00:27]} 45. fxe3 {[%clk 0:01:11]}  Re8 {[%clk 0:00:27]} 46. Kf2 {[%clk 0:01:10]}  Bd2 {[%clk 0:00:24]} 47. Ke2 {[%clk 0:01:09]}  Bc3 {[%clk 0:00:23]} 48. Kd3 {[%clk 0:01:08]}  Be5 {[%clk 0:00:22]} 49. Ke4 {[%clk 0:01:06]}  Bc3 {[%clk 0:00:19]} 50. Kf5 {[%clk 0:01:03]}  Rc8 {[%clk 0:00:12]} 51. e4 {[%clk 0:01:02]}  Bd2 {[%clk 0:00:08]} 52. e5 {[%clk 0:01:00]}  Be3 {[%clk 0:00:07]} 53. Rb7 {[%clk 0:00:56]}  Bd2 {[%clk 0:00:05]} 54. Kf6 {[%clk 0:00:56]}  Bc3 {[%clk 0:00:05]} 55. Nf4 {[%clk 0:00:51]}  Rf8+ {[%clk 0:00:03]} 56. Rf7 {[%clk 0:00:49]}  Bxe5+ {[%clk 0:00:03]} 57. Ke7 {[%clk 0:00:48]}  Rxf7+ {[%clk 0:00:03]} 58. Kxf7 {[%clk 0:00:47]}  Bxf4 {[%clk 0:00:04]} 59. Rg8+ {[%clk 0:00:41]}  Kh7 {[%clk 0:00:05]} 60. g6+ {[%clk 0:00:42]}  Kh6 {[%clk 0:00:05]} 61. Rh8+ {[%clk 0:00:35]}  Kg5 {[%clk 0:00:04]} 62. g7 {[%clk 0:00:35]}  Be5 {[%clk 0:00:05]} 63. g8=Q+ {[%clk 0:00:35]}  Kf4 {[%clk 0:00:03]} 64. Rh4+ {[%clk 0:00:33]}  Kf3 {[%clk 0:00:03]} 65. Qg4+ {[%clk 0:00:31]}  Ke3 {[%clk 0:00:03]} 66. Qe4+ {[%clk 0:00:30]}  Kf2 {[%clk 0:00:03]} 67. Qxe5 {[%clk 0:00:29]}  Kf3 {[%clk 0:00:03]} 68. Rf4+ {[%clk 0:00:28]}  Kg3 {[%clk 0:00:02]} 69. Qg5+ {[%clk 0:00:28]} 1-0


[Site "https://www.chess.com"]

[Event "Titled Tuesday Blitz April 05 Early 2022"]
[White "Brodowski, Piotr"]
[Black "Mogirzan, Matei-Valeriu"]
[WhiteFideId "1124480"]
[BlackFideId "1257455"]
[WhiteElo "2422"]
[BlackElo "1733"]
[Result "1-0"]
[Round "04"]
[TimeControl "180+1"]
[Date "2022.04.05"]
[WhiteClock "0:00:09"]
[BlackClock "0:00:03"]

1. e4 {[%clk 0:02:56]}  e5 {[%clk 0:02:56]} 2. Nf3 {[%clk 0:02:48]}  Nf6 {[%clk 0:02:56]} 3. Nxe5 {[%clk 0:02:46]}  Nc6 {[%clk 0:02:55]} 4. Nxc6 {[%clk 0:02:43]}  dxc6 {[%clk 0:02:56]} 5. d3 {[%clk 0:02:41]}  Bc5 {[%clk 0:02:54]} 6. Be3 {[%clk 0:02:13]}  Bxe3 {[%clk 0:02:52]} 7. fxe3 {[%clk 0:02:13]}  Ng4 {[%clk 0:02:52]} 8. Qf3 {[%clk 0:02:07]}  Qd6 {[%clk 0:02:46]} 9. Nc3 {[%clk 0:02:00]}  Nxh2 {[%clk 0:02:42]} 10. Qf4 {[%clk 0:02:00]}  Nxf1 {[%clk 0:02:37]} 11. Rxf1 {[%clk 0:01:57]}  Be6 {[%clk 0:02:36]} 12. Qg5 {[%clk 0:01:53]}  f6 {[%clk 0:02:20]} 13. Qxg7 {[%clk 0:01:49]}  O-O-O {[%clk 0:02:18]} 14. O-O-O {[%clk 0:01:48]}  Rhg8 {[%clk 0:02:00]} 15. Qxh7 {[%clk 0:01:37]}  Rxg2 {[%clk 0:01:58]} 16. Rxf6 {[%clk 0:01:32]}  Rdg8 {[%clk 0:01:42]} 17. Qh6 {[%clk 0:01:19]}  Kd7 {[%clk 0:01:24]} 18. Qf4 {[%clk 0:01:06]}  Rh2 {[%clk 0:01:14]} 19. Qxd6+ {[%clk 0:01:03]}  cxd6 {[%clk 0:01:14]} 20. Kb1 {[%clk 0:00:40]}  Rgg2 {[%clk 0:01:09]} 21. Rc1 {[%clk 0:00:41]}  Rh3 {[%clk 0:00:55]} 22. Nd1 {[%clk 0:00:29]}  Ke7 {[%clk 0:00:49]} 23. Rf1 {[%clk 0:00:28]}  b5 {[%clk 0:00:30]} 24. Re1 {[%clk 0:00:26]}  b4 {[%clk 0:00:22]} 25. b3 {[%clk 0:00:25]}  Rgg3 {[%clk 0:00:16]} 26. Kb2 {[%clk 0:00:24]}  Bg4 {[%clk 0:00:15]} 27. a3 {[%clk 0:00:24]}  a5 {[%clk 0:00:15]} 28. axb4 {[%clk 0:00:24]}  axb4 {[%clk 0:00:16]} 29. Nf2 {[%clk 0:00:23]}  Rh2 {[%clk 0:00:12]} 30. Nxg4 {[%clk 0:00:23]}  Rxg4 {[%clk 0:00:13]} 31. Rg1 {[%clk 0:00:21]}  Rgg2 {[%clk 0:00:11]} 32. Rxg2 {[%clk 0:00:21]}  Rxg2 {[%clk 0:00:12]} 33. Rh1 {[%clk 0:00:20]}  Re2 {[%clk 0:00:11]} 34. Rh3 {[%clk 0:00:20]}  c5 {[%clk 0:00:10]} 35. Kc1 {[%clk 0:00:16]}  Ke6 {[%clk 0:00:09]} 36. Kd1 {[%clk 0:00:17]}  Rg2 {[%clk 0:00:09]} 37. Rh1 {[%clk 0:00:15]}  Ke5 {[%clk 0:00:07]} 38. Re1 {[%clk 0:00:15]}  d5 {[%clk 0:00:07]} 39. exd5 {[%clk 0:00:15]}  Kxd5 {[%clk 0:00:08]} 40. Re2 {[%clk 0:00:15]}  Rg1+ {[%clk 0:00:07]} 41. Kd2 {[%clk 0:00:16]}  Ke5 {[%clk 0:00:07]} 42. Rh2 {[%clk 0:00:16]}  Kd6 {[%clk 0:00:03]} 43. Ke2 {[%clk 0:00:16]}  Ke5 {[%clk 0:00:03]} 44. Kf3 {[%clk 0:00:16]}  Rc1 {[%clk 0:00:03]} 45. Rd2 {[%clk 0:00:08]}  Rf1+ {[%clk 0:00:02]} 46. Ke2 {[%clk 0:00:08]}  Rc1 {[%clk 0:00:03]} 47. d4+ {[%clk 0:00:08]}  cxd4 {[%clk 0:00:03]} 48. exd4+ {[%clk 0:00:09]}  Kd5 {[%clk 0:00:03]} 49. Kd3 {[%clk 0:00:09]}  Rh1 {[%clk 0:00:03]} 50. Re2 {[%clk 0:00:09]}  Rh3+ {[%clk 0:00:03]} 51. Re3 {[%clk 0:00:10]}  Rh2 {[%clk 0:00:03]} 52. Re5+ {[%clk 0:00:10]}  Kd6 {[%clk 0:00:04]} 53. Rb5 {[%clk 0:00:10]}  Rh3+ {[%clk 0:00:04]} 54. Kc4 {[%clk 0:00:11]}  Rc3+ {[%clk 0:00:04]} 55. Kxb4 {[%clk 0:00:11]}  Rxc2 {[%clk 0:00:05]} 56. Rc5 {[%clk 0:00:11]}  Rd2 {[%clk 0:00:04]} 57. Rc4 {[%clk 0:00:11]}  Kd5 {[%clk 0:00:04]} 58. Kb5 {[%clk 0:00:11]}  Rb2 {[%clk 0:00:04]} 59. b4 {[%clk 0:00:12]}  Rb3 {[%clk 0:00:04]} 60. Rc5+ {[%clk 0:00:11]}  Kxd4 {[%clk 0:00:04]} 61. Rc1 {[%clk 0:00:11]}  Kd5 {[%clk 0:00:04]} 62. Ka5 {[%clk 0:00:11]}  Ra3+ {[%clk 0:00:04]} 63. Kb6 {[%clk 0:00:12]}  Rb3 {[%clk 0:00:03]} 64. b5 {[%clk 0:00:12]}  Kd6 {[%clk 0:00:03]} 65. Ka6 {[%clk 0:00:13]}  Kd7 {[%clk 0:00:02]} 66. b6 {[%clk 0:00:12]}  Ra3+ {[%clk 0:00:03]} 67. Kb7 {[%clk 0:00:12]}  Rb3 {[%clk 0:00:03]} 68. Ka7 {[%clk 0:00:13]}  Ra3+ {[%clk 0:00:04]} 69. Kb8 {[%clk 0:00:13]}  Rb3 {[%clk 0:00:04]} 70. b7 {[%clk 0:00:14]}  Rb4 {[%clk 0:00:04]} 71. Rd1+ {[%clk 0:00:13]}  Kc6 {[%clk 0:00:05]} 72. Kc8 {[%clk 0:00:10]}  Rh4 {[%clk 0:00:02]} 73. b8=Q {[%clk 0:00:10]}  Rh8+ {[%clk 0:00:02]} 74. Rd8 {[%clk 0:00:10]}  Rh7 {[%clk 0:00:02]} 75. Qa8+ {[%clk 0:00:09]}  Kb6 {[%clk 0:00:02]} 76. Rd6+ {[%clk 0:00:09]}  Kc5 {[%clk 0:00:03]} 77. Qc6+ {[%clk 0:00:08]}  Kb4 {[%clk 0:00:03]} 78. Rd4+ {[%clk 0:00:09]}  Ka5 {[%clk 0:00:04]} 79. Qc5+ {[%clk 0:00:08]}  Ka6 {[%clk 0:00:03]} 80. Ra4# {[%clk 0:00:09]} 1-0


[Site "https://www.chess.com"]

[Event "Titled Tuesday Blitz April 05 Early 2022"]
[White "Chen, Qi b"]
[Black "Shukhman, Anna"]
[WhiteFideId "8614733"]
[BlackFideId "54180058"]
[WhiteElo "2432"]
[BlackElo "1665"]
[Result "1-0"]
[Round "04"]
[TimeControl "180+1"]
[Date "2022.04.05"]
[WhiteClock "0:01:01"]
[BlackClock "0:00:14"]

1. e4 {[%clk 0:03:00]}  c5 {[%clk 0:02:58]} 2. Nf3 {[%clk 0:03:01]}  e6 {[%clk 0:02:57]} 3. d4 {[%clk 0:03:01]}  cxd4 {[%clk 0:02:57]} 4. Nxd4 {[%clk 0:03:02]}  a6 {[%clk 0:02:57]} 5. Nc3 {[%clk 0:03:00]}  Qc7 {[%clk 0:02:56]} 6. Bd3 {[%clk 0:03:01]}  b5 {[%clk 0:02:55]} 7. O-O {[%clk 0:03:00]}  Bb7 {[%clk 0:02:54]} 8. Re1 {[%clk 0:03:00]}  Nc6 {[%clk 0:02:53]} 9. Nxc6 {[%clk 0:02:55]}  dxc6 {[%clk 0:02:49]} 10. a4 {[%clk 0:02:52]}  b4 {[%clk 0:02:46]} 11. Nb1 {[%clk 0:02:52]}  e5 {[%clk 0:02:44]} 12. Nd2 {[%clk 0:02:51]}  Nf6 {[%clk 0:02:41]} 13. Nc4 {[%clk 0:02:50]}  a5 {[%clk 0:02:39]} 14. Bg5 {[%clk 0:02:46]}  Be7 {[%clk 0:02:36]} 15. Qf3 {[%clk 0:02:47]}  h6 {[%clk 0:02:33]} 16. Bh4 {[%clk 0:02:42]}  c5 {[%clk 0:02:20]} 17. Ne3 {[%clk 0:02:29]}  O-O-O {[%clk 0:01:54]} 18. Bxf6 {[%clk 0:02:22]}  Bxf6 {[%clk 0:01:51]} 19. Bc4 {[%clk 0:02:22]}  Rd4 {[%clk 0:01:35]} 20. Bd5 {[%clk 0:02:11]}  Rd8 {[%clk 0:01:26]} 21. c3 {[%clk 0:02:06]}  Rd2 {[%clk 0:01:19]} 22. Bxb7+ {[%clk 0:01:43]}  Kxb7 {[%clk 0:01:16]} 23. Nc4 {[%clk 0:01:29]}  R2d3 {[%clk 0:01:06]} 24. Qe2 {[%clk 0:01:28]}  Be7 {[%clk 0:00:41]} 25. g3 {[%clk 0:01:23]}  f6 {[%clk 0:00:38]} 26. Rec1 {[%clk 0:01:21]}  R8d7 {[%clk 0:00:33]} 27. Kg2 {[%clk 0:01:16]}  Bd8 {[%clk 0:00:30]} 28. cxb4 {[%clk 0:01:12]}  cxb4 {[%clk 0:00:29]} 29. Ne3 {[%clk 0:01:10]}  Qb6 {[%clk 0:00:25]} 30. Nd5 {[%clk 0:01:09]}  Qd4 {[%clk 0:00:24]} 31. Rd1 {[%clk 0:01:05]}  Rxd1 {[%clk 0:00:23]} 32. Rxd1 {[%clk 0:01:06]}  Qc5 {[%clk 0:00:23]} 33. Rd2 {[%clk 0:01:03]}  Bb6 {[%clk 0:00:21]} 34. Rc2 {[%clk 0:01:02]}  Qd6 {[%clk 0:00:18]} 35. Qb5 {[%clk 0:01:02]}  Ka7 {[%clk 0:00:14]} 36. Nxb6 {[%clk 0:01:01]} 1-0


[Site "https://www.chess.com"]

[Event "Titled Tuesday Blitz April 05 Early 2022"]
[White "Csonka, Balazs"]
[Black "Kalogridis, Antonios"]
[WhiteFideId "742910"]
[BlackFideId "25833901"]
[WhiteElo "2404"]
[BlackElo "1596"]
[Result "1-0"]
[Round "04"]
[TimeControl "180+1"]
[Date "2022.04.05"]
[WhiteClock "0:00:11"]
[BlackClock "0:01:01"]

1. d4 {[%clk 0:03:00]}  Nf6 {[%clk 0:02:59]} 2. Bg5 {[%clk 0:02:58]}  Ne4 {[%clk 0:02:58]} 3. Bf4 {[%clk 0:02:58]}  c5 {[%clk 0:02:58]} 4. d5 {[%clk 0:02:58]}  Qb6 {[%clk 0:02:57]} 5. Nd2 {[%clk 0:02:58]}  Qb4 {[%clk 0:02:43]} 6. a3 {[%clk 0:01:56]}  Qd4 {[%clk 0:02:37]} 7. Nxe4 {[%clk 0:01:45]}  Qxe4 {[%clk 0:02:35]} 8. e3 {[%clk 0:01:46]}  d6 {[%clk 0:02:21]} 9. Nf3 {[%clk 0:01:37]}  Bg4 {[%clk 0:02:14]} 10. c4 {[%clk 0:01:03]}  Qg6 {[%clk 0:01:51]} 11. Bd3 {[%clk 0:00:51]}  Bxf3 {[%clk 0:01:47]} 12. Qa4+ {[%clk 0:00:45]}  Nd7 {[%clk 0:01:44]} 13. Bxg6 {[%clk 0:00:44]}  hxg6 {[%clk 0:01:44]} 14. gxf3 {[%clk 0:00:43]}  a6 {[%clk 0:01:41]} 15. Ke2 {[%clk 0:00:38]}  O-O-O {[%clk 0:01:40]} 16. b4 {[%clk 0:00:34]}  Kb8 {[%clk 0:01:38]} 17. Rab1 {[%clk 0:00:33]}  Rc8 {[%clk 0:01:36]} 18. b5 {[%clk 0:00:31]}  Nb6 {[%clk 0:01:34]} 19. Qa5 {[%clk 0:00:23]}  Nxc4 {[%clk 0:01:28]} 20. Qc3 {[%clk 0:00:23]}  Nb6 {[%clk 0:01:12]} 21. bxa6 {[%clk 0:00:21]}  Nxd5 {[%clk 0:01:12]} 22. Qb3 {[%clk 0:00:16]}  Nb4 {[%clk 0:01:04]} 23. axb4 {[%clk 0:00:15]}  c4 {[%clk 0:01:05]} 24. Qa4 {[%clk 0:00:14]}  b6 {[%clk 0:01:02]} 25. a7+ {[%clk 0:00:12]}  Ka8 {[%clk 0:01:02]} 26. Qa6 {[%clk 0:00:13]}  Rc7 {[%clk 0:01:01]} 27. Qxb6 {[%clk 0:00:11]}  Rb7 {[%clk 0:01:01]} 28. Qd8+ {[%clk 0:00:10]}  Kxa7 {[%clk 0:01:01]} 29. Ra1# {[%clk 0:00:11]} 1-0


[Site "https://www.chess.com"]

[Event "Titled Tuesday Blitz April 05 Early 2022"]
[White "Derraugh, Geordie"]
[Black "Stromboli, Ettore"]
[WhiteFideId "2603950"]
[BlackFideId "813761"]
[WhiteElo "2116"]
[BlackElo "2414"]
[Result "1-0"]
[Round "04"]
[TimeControl "180+1"]
[Date "2022.04.05"]
[WhiteClock "0:00:17"]
[BlackClock "0:00:08"]

1. e4 {[%clk 0:03:00]}  e6 {[%clk 0:02:57]} 2. d4 {[%clk 0:03:00]}  d5 {[%clk 0:02:56]} 3. Nd2 {[%clk 0:03:00]}  c5 {[%clk 0:02:53]} 4. Ngf3 {[%clk 0:03:00]}  Nc6 {[%clk 0:02:50]} 5. exd5 {[%clk 0:02:59]}  exd5 {[%clk 0:02:48]} 6. Bb5 {[%clk 0:03:00]}  Bd6 {[%clk 0:02:47]} 7. O-O {[%clk 0:02:59]}  Ne7 {[%clk 0:02:46]} 8. dxc5 {[%clk 0:02:59]}  Bxc5 {[%clk 0:02:47]} 9. Nb3 {[%clk 0:03:00]}  Bd6 {[%clk 0:02:47]} 10. Nbd4 {[%clk 0:02:58]}  O-O {[%clk 0:02:47]} 11. Bg5 {[%clk 0:02:57]}  Qb6 {[%clk 0:02:44]} 12. c3 {[%clk 0:02:26]}  Bg4 {[%clk 0:02:39]} 13. Qb3 {[%clk 0:02:18]}  f6 {[%clk 0:02:30]} 14. Bh4 {[%clk 0:02:17]}  Rad8 {[%clk 0:02:24]} 15. Rfe1 {[%clk 0:02:17]}  Kh8 {[%clk 0:01:54]} 16. Bg3 {[%clk 0:02:15]}  Bc5 {[%clk 0:01:45]} 17. Ne6 {[%clk 0:02:00]}  Bxe6 {[%clk 0:01:20]} 18. Rxe6 {[%clk 0:02:00]}  Nf5 {[%clk 0:01:21]} 19. Bxc6 {[%clk 0:01:54]}  Nxg3 {[%clk 0:01:05]} 20. Qxb6 {[%clk 0:01:52]}  Bxb6 {[%clk 0:00:52]} 21. hxg3 {[%clk 0:01:51]}  bxc6 {[%clk 0:00:52]} 22. Rxc6 {[%clk 0:01:51]}  d4 {[%clk 0:00:53]} 23. cxd4 {[%clk 0:01:32]}  Bxd4 {[%clk 0:00:53]} 24. Nxd4 {[%clk 0:01:33]}  Rxd4 {[%clk 0:00:54]} 25. Rc7 {[%clk 0:01:33]}  a5 {[%clk 0:00:52]} 26. Re1 {[%clk 0:01:31]}  a4 {[%clk 0:00:21]} 27. Ree7 {[%clk 0:01:31]}  Rg4 {[%clk 0:00:21]} 28. Ra7 {[%clk 0:01:18]}  h5 {[%clk 0:00:19]} 29. f3 {[%clk 0:01:16]}  Rxg3 {[%clk 0:00:19]} 30. Rxa4 {[%clk 0:01:16]}  Rb8 {[%clk 0:00:19]} 31. b3 {[%clk 0:01:16]}  Kh7 {[%clk 0:00:18]} 32. Kf2 {[%clk 0:01:15]}  Rg5 {[%clk 0:00:18]} 33. Re2 {[%clk 0:01:09]}  Rc8 {[%clk 0:00:16]} 34. Rb2 {[%clk 0:01:08]}  Rc1 {[%clk 0:00:15]} 35. Re4 {[%clk 0:01:06]}  Rgc5 {[%clk 0:00:13]} 36. Ree2 {[%clk 0:01:04]}  Ra1 {[%clk 0:00:13]} 37. b4 {[%clk 0:01:04]}  Rb5 {[%clk 0:00:13]} 38. Rec2 {[%clk 0:01:02]}  g5 {[%clk 0:00:12]} 39. Ke3 {[%clk 0:01:02]}  Kg6 {[%clk 0:00:12]} 40. Kd3 {[%clk 0:01:02]}  h4 {[%clk 0:00:13]} 41. Kc4 {[%clk 0:01:03]}  Rb7 {[%clk 0:00:12]} 42. b5 {[%clk 0:01:03]}  Rf1 {[%clk 0:00:11]} 43. a4 {[%clk 0:01:01]}  h3 {[%clk 0:00:11]} 44. gxh3 {[%clk 0:00:53]}  Rxf3 {[%clk 0:00:11]} 45. a5 {[%clk 0:00:51]}  Rxh3 {[%clk 0:00:11]} 46. a6 {[%clk 0:00:50]}  Re7 {[%clk 0:00:10]} 47. b6 {[%clk 0:00:49]}  Re5 {[%clk 0:00:11]} 48. b7 {[%clk 0:00:46]}  Rh4+ {[%clk 0:00:08]} 49. Kd3 {[%clk 0:00:46]}  Rd5+ {[%clk 0:00:07]} 50. Ke3 {[%clk 0:00:44]}  Re5+ {[%clk 0:00:08]} 51. Kf3 {[%clk 0:00:43]}  Rf5+ {[%clk 0:00:06]} 52. Kg3 {[%clk 0:00:44]}  Kh5 {[%clk 0:00:05]} 53. b8=Q {[%clk 0:00:35]}  Rg4+ {[%clk 0:00:05]} 54. Kh2 {[%clk 0:00:34]}  Rh4+ {[%clk 0:00:05]} 55. Kg1 {[%clk 0:00:34]}  Rd4 {[%clk 0:00:02]} 56. Qh8+ {[%clk 0:00:32]}  Kg6 {[%clk 0:00:03]} 57. Qg8+ {[%clk 0:00:31]}  Kh5 {[%clk 0:00:03]} 58. Rh2+ {[%clk 0:00:32]}  Kg4 {[%clk 0:00:03]} 59. Rbg2+ {[%clk 0:00:31]}  Kf3 {[%clk 0:00:04]} 60. Qb3+ {[%clk 0:00:30]}  Ke4 {[%clk 0:00:03]} 61. Re2+ {[%clk 0:00:30]}  Kf4 {[%clk 0:00:03]} 62. Rhf2+ {[%clk 0:00:30]}  Kg4 {[%clk 0:00:03]} 63. Rg2+ {[%clk 0:00:27]}  Kh4 {[%clk 0:00:03]} 64. Qg3+ {[%clk 0:00:20]}  Kh5 {[%clk 0:00:01]} 65. Qh3+ {[%clk 0:00:16]}  Kg6 {[%clk 0:00:02]} 66. Qxf5+ {[%clk 0:00:17]}  Kxf5 {[%clk 0:00:02]} 67. Ra2 {[%clk 0:00:17]}  Kg6 {[%clk 0:00:03]} 68. a7 {[%clk 0:00:17]}  Rd1+ {[%clk 0:00:04]} 69. Kh2 {[%clk 0:00:17]}  Rd7 {[%clk 0:00:04]} 70. a8=Q {[%clk 0:00:17]}  Rh7+ {[%clk 0:00:05]} 71. Kg3 {[%clk 0:00:17]}  Rd7 {[%clk 0:00:06]} 72. Qe4+ {[%clk 0:00:17]}  f5 {[%clk 0:00:07]} 73. Qe6+ {[%clk 0:00:17]}  Kh5 {[%clk 0:00:08]} 74. Rh2# {[%clk 0:00:17]} 1-0


[Site "https://www.chess.com"]

[Event "Titled Tuesday Blitz April 05 Early 2022"]
[White "Dobrov, Vladimir"]
[Black "Ronka, Erik"]
[WhiteFideId "4136594"]
[BlackFideId "505080"]
[WhiteElo "2575"]
[BlackElo "2264"]
[Result "1-0"]
[Round "04"]
[TimeControl "180+1"]
[Date "2022.04.05"]
[WhiteClock "0:02:33"]
[BlackClock "0:01:06"]

1. d4 {[%clk 0:03:00]}  d5 {[%clk 0:02:57]} 2. c4 {[%clk 0:03:00]}  c6 {[%clk 0:02:57]} 3. Nc3 {[%clk 0:03:00]}  Nf6 {[%clk 0:02:57]} 4. Nf3 {[%clk 0:02:59]}  e6 {[%clk 0:02:58]} 5. Bg5 {[%clk 0:02:58]}  dxc4 {[%clk 0:02:57]} 6. e4 {[%clk 0:02:58]}  b5 {[%clk 0:02:58]} 7. e5 {[%clk 0:02:58]}  h6 {[%clk 0:02:58]} 8. Bh4 {[%clk 0:02:58]}  g5 {[%clk 0:02:59]} 9. Nxg5 {[%clk 0:02:56]}  hxg5 {[%clk 0:03:00]} 10. Bxg5 {[%clk 0:02:56]}  Nbd7 {[%clk 0:03:00]} 11. g3 {[%clk 0:02:56]}  Qb6 {[%clk 0:03:01]} 12. exf6 {[%clk 0:02:55]}  Bb7 {[%clk 0:03:02]} 13. Bg2 {[%clk 0:02:55]}  O-O-O {[%clk 0:03:02]} 14. O-O {[%clk 0:02:54]}  c5 {[%clk 0:03:03]} 15. d5 {[%clk 0:02:55]}  b4 {[%clk 0:03:03]} 16. Rb1 {[%clk 0:02:53]}  Qa6 {[%clk 0:03:04]} 17. dxe6 {[%clk 0:02:52]}  Bxg2 {[%clk 0:03:04]} 18. e7 {[%clk 0:02:52]}  Bxf1 {[%clk 0:03:03]} 19. Qd5 {[%clk 0:02:51]}  Bxe7 {[%clk 0:03:00]} 20. fxe7 {[%clk 0:02:52]}  Bd3 {[%clk 0:02:50]} 21. exd8=Q+ {[%clk 0:02:45]}  Rxd8 {[%clk 0:02:49]} 22. Ne4 {[%clk 0:02:44]}  Bxb1 {[%clk 0:02:38]} 23. Nd6+ {[%clk 0:02:44]}  Kc7 {[%clk 0:02:38]} 24. Bf4 {[%clk 0:02:44]}  Kb6 {[%clk 0:01:49]} 25. Nxc4+ {[%clk 0:02:43]}  Kb5 {[%clk 0:01:48]} 26. Nd6+ {[%clk 0:02:43]}  Kb6 {[%clk 0:01:48]} 27. a4 {[%clk 0:02:42]}  bxa3 {[%clk 0:01:47]} 28. Nc4+ {[%clk 0:02:42]}  Kb5 {[%clk 0:01:47]} 29. Nxa3+ {[%clk 0:02:39]}  Kb6 {[%clk 0:01:31]} 30. Qd6+ {[%clk 0:02:34]}  Ka5 {[%clk 0:01:06]} 31. Bd2+ {[%clk 0:02:33]} 1-0


[Site "https://www.chess.com"]